[Event "Eurasia Open Cup 2019"]
[Site "Ekaterinburg"]
[Date "2019.08.03"]
[Round "4.31"]
[White "Postnikov, Daniil"]
[Black "Voinikonis, Nikita"]
[Result "0-1"]
[ECO "B94"]
[WhiteElo "2354"]
[BlackElo "2137"]
[Annotator "NA"]
[PlyCount "99"]
[EventDate "2019.07.31"]
[EventType "swiss"]
[EventCountry "RUS"]
[SourceTitle "playchess.com"]
[Source "ChessBase"]
[SourceQuality "1"]
[TimeControl "5400+30"]

1. e4 {[%emt 0:00:00]} c5 {[%emt 0:00:00]} 2. Nf3 {[%emt 0:00:00]} d6 {[%emt 0:00:00]} 3. d4 {[%emt 0:00:00]} cxd4 {[%emt 0:00:00]} 4. Nxd4 {[%emt 0:00:00]} Nf6 {[%emt 0:00:00]} 5. Nc3 {[%emt 0:00:00]} a6 {[%emt 0:00:00]} 6. Nb3 {[%emt 0:00:00]} e5 {[%emt 0:03:31]} 7. Bg5 {[%emt 0:00:03]} Be6 {[%emt 0:00:48]} 8. f4 {[%emt 0:00:00]} h6 {[%emt 0:08:21]} 9. Bxf6 {[%emt 0:00:03]} Qxf6 {[%emt 0:00:00]} 10. f5 {[%emt 0:00:10]} Bc8 {[%emt 0:03:25]} 11. Nd2 {[%emt 0:22:40]} Qh4+ {[%emt 0:13:27]} 12. g3 {[%emt 0:00:15]} Qd8 {[%emt 0:00:06]} 13. a4 {[%emt 0:02:24]} d5 {[%emt 0:03:43]} 14. Nxd5 {[%emt 0:02:45]} Bxf5 {[%emt 0:04:24]} 15. Qh5 {[%emt 0:00:15]} Be6 {[%emt 0:06:11]} 16. O-O-O {[%emt 0:15:49]} Nd7 {[%emt 0:07:07]} 17. Nc4 {[%emt 0:02:44]} Bxd5 {[%emt 0:08:10]} 18. Rxd5 {[%emt 0:00:06]} Qg5+ {[%emt 0:02:20]} 19. Qxg5 {[%emt 0:00:36]} hxg5 {[%emt 0:00:03]} 20. Nxe5 {[%emt 0:03:55]} Nxe5 {[%emt 0:19:07]} 21. Rxe5+ {[%emt 0:00:44]} Be7 {[%emt 0:00:02]} 22. Bc4 {[%emt 0:05:49]} Rc8 {[%emt 0:00:05]} 23. Bd5 {[%emt 0:01:28]} Rc7 {[%emt 0:00:02]} 24. h4 {[%emt 0:05:36]} gxh4 {[%emt 0:00:03]} 25. gxh4 {[%emt 0:00:11]} Kf8 {[%emt 0:02:26]} 26. h5 {[%emt 0:03:18]} Bd6 {[%emt 0:00:56]} 27. Rf5 {[%emt 0:00:17]} g6 {[%emt 0:00:08]} 28. Rf6 {[%emt 0:09:06]} Be5 {[%emt 0:00:14]} 29. Rb6 {[%emt 0:00:04]} Rxh5 {[%emt 0:02:17]} 30. Rf1 {[%emt 0:01:34]} Bd4 {[%emt 0:00:29]} 31. Rxg6 {[%emt 0:01:03]} Rh1 {[%emt 0:01:15]} 32. Rgf6 {[%emt 0:04:18]} Bxf6 {[%emt 0:00:41]} 33. Rxh1 {[%emt 0:00:02]} Be5 {[%emt 0:00:04]} 34. a5 {[%emt 0:02:59]} Rc5 {[%emt 0:01:47]} 35. Rh5 {[%emt 0:00:11]} Bf6 {[%emt 0:04:24]} 36. Rf5 {[%emt 0:00:15]} Be7 {[%emt 0:02:38]} 37. Bxb7 {[%emt 0:04:11]} Rxf5 {[%emt 0:00:11]} 38. exf5 {[%emt 0:00:05]} Bb4 {[%emt 0:00:31]} 39. Bxa6 {[%emt 0:00:08]} Bxa5 {[%emt 0:00:00]} 40. c3 {[%emt 0:00:38]} Ke7 {[%emt 0:00:07]} 41. Kc2 {[%emt 0:00:00]} Kf6 {[%emt 0:00:00]} 42. Bd3 {[%emt 0:00:00]} Ke5 {[%emt 0:00:00]} 43. b4 {[%emt 0:00:00]} Bd8 {[%emt 0:00:00]} 44. Kb3 {[%emt 0:00:00]} Kf4 {[%emt 0:00:06]} 45. c4 {[%emt 0:00:19]} Ke3 {[%emt 0:00:07]} 46. Bb1 {[%emt 0:00:04]} Kd4 {[%emt 0:00:15]} 47. c5 {[%emt 0:00:14]} Bh4 {[%emt 0:00:59]} 48. Ka4 {[%emt 0:00:06]} Be1 {[%emt 0:00:07]} 49. Kb5 {[%emt 0:00:17]} f6 {[%emt 0:00:33]} 50. c6 {[%emt 0:00:57]} 0-1

[Event "Eurasia Open Cup 2019"]
[Site "Ekaterinburg"]
[Date "2019.08.03"]
[Round "4.32"]
[White "Klukin, Kirill"]
[Black "Zhukov, Ivan"]
[Result "1-0"]
[ECO "E60"]
[WhiteElo "2325"]
[BlackElo "2136"]
[Annotator "NA"]
[PlyCount "63"]
[EventDate "2019.07.31"]
[EventType "swiss"]
[EventCountry "RUS"]
[SourceTitle "playchess.com"]
[Source "ChessBase"]
[SourceQuality "1"]
[TimeControl "5400+30"]

1. Nf3 {[%emt 0:01:26]} Nf6 {[%emt 0:00:00]} 2. c4 {[%emt 0:00:08]} g6 {[%emt 0:00:00]} 3. b3 {[%emt 0:00:10]} Bg7 {[%emt 0:00:00]} 4. Bb2 {[%emt 0:00:04]} O-O {[%emt 0:00:00]} 5. g3 {[%emt 0:00:31]} d6 {[%emt 0:02:31]} 6. d4 {[%emt 0:00:00]} c5 {[%emt 0:02:38]} 7. Bg2 {[%emt 0:01:21]} Nc6 {[%emt 0:01:06]} 8. O-O {[%emt 0:05:06]} Bg4 {[%emt 0:04:50]} 9. dxc5 {[%emt 0:16:59]} dxc5 {[%emt 0:00:00]} 10. h3 {[%emt 0:00:17]} Bf5 {[%emt 0:02:49]} 11. g4 {[%emt 0:06:54]} Bd7 {[%emt 0:01:28]} 12. Nc3 {[%emt 0:02:07]} Rc8 {[%emt 0:01:48]} 13. Qc1 {[%emt 0:02:10]} Qc7 {[%emt 0:00:15]} 14. Rd1 {[%emt 0:05:40]} Rfd8 {[%emt 0:01:08]} 15. Qe3 {[%emt 0:06:56]} b6 {[%emt 0:09:43]} 16. g5 {[%emt 0:03:13]} Nh5 {[%emt 0:03:33]} 17. Nd5 {[%emt 0:00:43]} Qb8 {[%emt 0:00:11]} 18. Bxg7 {[%emt 0:00:22]} Kxg7 {[%emt 0:01:23]} 19. Nxe7 {[%emt 0:03:05]} Nxe7 {[%emt 0:00:00]} 20. Qxe7 {[%emt 0:00:07]} Be6 {[%emt 0:00:00]} 21. e3 {[%emt 0:02:41]} Kg8 {[%emt 0:01:24]} 22. Nh2 {[%emt 0:02:48]} Rxd1+ {[%emt 0:02:58]} 23. Rxd1 {[%emt 0:00:05]} Re8 {[%emt 0:01:35]} 24. Qd6 {[%emt 0:00:36]} Qc8 {[%emt 0:00:43]} 25. Bc6 {[%emt 0:01:35]} Rf8 {[%emt 0:00:01]} 26. Bd7 {[%emt 0:01:17]} Bxd7 {[%emt 0:00:57]} 27. Qxd7 {[%emt 0:00:05]} Qa8 {[%emt 0:03:59]} 28. Rd5 {[%emt 0:02:07]} Ng7 {[%emt 0:00:06]} 29. Ng4 {[%emt 0:00:24]} Ne6 {[%emt 0:00:19]} 30. Qe7 {[%emt 0:00:55]} Qc8 {[%emt 0:03:25]} 31. Nh6+ {[%emt 0:00:27]} Kh8 {[%emt 0:00:01]} 32. Nxf7+ {[%emt 0:00:35]} 1-0

[Event "Eurasia Open Cup 2019"]
[Site "Ekaterinburg"]
[Date "2019.08.03"]
[Round "4.33"]
[White "Pozin, Sergey"]
[Black "Averyanov, Grigori"]
[Result "1/2-1/2"]
[ECO "E07"]
[WhiteElo "2299"]
[BlackElo "2131"]
[Annotator "NA"]
[PlyCount "153"]
[EventDate "2019.07.31"]
[EventType "swiss"]
[EventCountry "RUS"]
[SourceTitle "playchess.com"]
[Source "ChessBase"]
[SourceQuality "1"]
[TimeControl "5400+30"]

1. d4 {[%emt 0:03:07]} d5 {[%emt 0:00:00]} 2. c4 {[%emt 0:00:00]} e6 {[%emt 0:00:00]} 3. Nf3 {[%emt 0:00:02]} Nf6 {[%emt 0:00:00]} 4. Bg5 {[%emt 0:00:08]} Be7 {[%emt 0:00:40]} 5. Nc3 {[%emt 0:00:31]} c6 {[%emt 0:00:00]} 6. g3 {[%emt 0:01:24]} O-O {[%emt 0:00:37]} 7. Bg2 {[%emt 0:00:34]} Nbd7 {[%emt 0:03:18]} 8. O-O {[%emt 0:01:37]} h6 {[%emt 0:01:14]} 9. Bxf6 {[%emt 0:00:41]} Nxf6 {[%emt 0:01:45]} 10. Qc2 {[%emt 0:03:02]} dxc4 {[%emt 0:03:28]} 11. Rfd1 {[%emt 0:00:49]} c5 {[%emt 0:04:34]} 12. a4 {[%emt 0:21:09]} Qa5 {[%emt 0:04:19]} 13. e3 {[%emt 0:05:17]} cxd4 {[%emt 0:01:52]} 14. exd4 {[%emt 0:02:01]} Bd7 {[%emt 0:18:59]} 15. Ne5 {[%emt 0:00:00]} Qc7 {[%emt 0:00:01]} 16. Nb5 {[%emt 0:02:17]} Bxb5 {[%emt 0:00:19]} 17. axb5 {[%emt 0:00:04]} Rfc8 {[%emt 0:15:23]} 18. Ra4 {[%emt 0:00:27]} Qb6 {[%emt 0:00:00]} 19. Rxc4 {[%emt 0:00:29]} Rxc4 {[%emt 0:00:00]} 20. Qxc4 {[%emt 0:01:47]} Rd8 {[%emt 0:00:00]} 21. Qa4 {[%emt 0:04:03]} Ne8 {[%emt 0:09:53]} 22. Nc4 {[%emt 0:06:38]} Qc7 {[%emt 0:00:04]} 23. Ne3 {[%emt 0:04:55]} Qb6 {[%emt 0:03:23]} 24. Nc4 {[%emt 0:00:40]} Qc7 {[%emt 0:00:00]} 25. Ra1 {[%emt 0:07:54]} Bf6 {[%emt 0:08:23]} 26. d5 {[%emt 0:01:50]} exd5 {[%emt 0:01:32]} 27. Ne3 {[%emt 0:02:12]} Bxb2 {[%emt 0:05:38]} 28. Nxd5 {[%emt 0:06:29]} Qc5 {[%emt 0:02:30]} 29. Rd1 {[%emt 0:03:33]} Kf8 {[%emt 0:01:50]} 30. Bf3 {[%emt 0:03:36]} Nf6 {[%emt 0:08:47]} 31. Ne3 {[%emt 0:05:32]} Rxd1+ {[%emt 0:00:16]} 32. Nxd1 {[%emt 0:00:04]} Bd4 {[%emt 0:00:21]} 33. Bxb7 {[%emt 0:03:05]} Ng4 {[%emt 0:00:12]} 34. Kg2 {[%emt 0:00:44]} Ne5 {[%emt 0:01:54]} 35. Qb3 {[%emt 0:01:58]} Nc4 {[%emt 0:00:42]} 36. Qa4 {[%emt 0:03:22]} g5 {[%emt 0:02:45]} 37. h3 {[%emt 0:01:33]} Kg7 {[%emt 0:00:12]} 38. Bf3 {[%emt 0:00:31]} Nd6 {[%emt 0:00:00]} 39. Be2 {[%emt 0:00:34]} Qe5 {[%emt 0:00:10]} 40. Qb4 {[%emt 0:01:57]} Nf5 {[%emt 0:00:48]} 41. Qc4 {[%emt 0:00:00]} Nd6 {[%emt 0:00:48]} 42. Qd3 {[%emt 0:00:11]} Ne8 {[%emt 0:00:56]} 43. Bf3 {[%emt 0:01:49]} Nf6 {[%emt 0:00:03]} 44. Ne3 {[%emt 0:00:38]} Bxe3 {[%emt 0:00:08]} 45. Qxe3 {[%emt 0:00:51]} Qxe3 {[%emt 0:00:14]} 46. fxe3 {[%emt 0:00:00]} Kf8 {[%emt 0:01:03]} 47. Kf2 {[%emt 0:00:11]} Ke7 {[%emt 0:00:05]} 48. Ke2 {[%emt 0:00:06]} Kd6 {[%emt 0:00:03]} 49. Kd3 {[%emt 0:00:17]} Kc5 {[%emt 0:00:17]} 50. Be2 {[%emt 0:00:17]} Nd5 {[%emt 0:01:48]} 51. Bh5 {[%emt 0:01:13]} f6 {[%emt 0:00:16]} 52. Be2 {[%emt 0:01:49]} Ne7 {[%emt 0:01:04]} 53. Ke4 {[%emt 0:00:37]} Kd6 {[%emt 0:02:01]} 54. g4 {[%emt 0:00:00]} Ke6 {[%emt 0:00:39]} 55. Kd4 {[%emt 0:00:42]} Kd6 {[%emt 0:00:08]} 56. Ke4 {[%emt 0:00:09]} Kc5 {[%emt 0:00:41]} 57. Bd3 {[%emt 0:00:58]} Kd6 {[%emt 0:00:57]} 58. Kd4 {[%emt 0:00:30]} Nd5 {[%emt 0:00:15]} 59. Bg6 {[%emt 0:00:40]} Nc7 {[%emt 0:00:53]} 60. Bd3 {[%emt 0:00:51]} Ne6+ {[%emt 0:00:01]} 61. Kc4 {[%emt 0:00:22]} Nd8 {[%emt 0:01:30]} 62. Bg6 {[%emt 0:00:54]} Nb7 {[%emt 0:00:19]} 63. Kd4 {[%emt 0:00:26]} Nd8 {[%emt 0:00:40]} 64. Ke4 {[%emt 0:00:33]} Ne6 {[%emt 0:00:16]} 65. Bf7 {[%emt 0:00:46]} Nc7 {[%emt 0:00:33]} 66. Kf5 {[%emt 0:00:19]} Nxb5 {[%emt 0:00:45]} 67. Kxf6 {[%emt 0:00:06]} Nc3 {[%emt 0:00:06]} 68. Kg7 {[%emt 0:00:32]} Ke7 {[%emt 0:00:36]} 69. Bc4 {[%emt 0:00:37]} a5 {[%emt 0:00:46]} 70. Kxh6 {[%emt 0:00:15]} Kf6 {[%emt 0:00:07]} 71. Kh5 {[%emt 0:00:39]} Ne4 {[%emt 0:00:59]} 72. Bd5 {[%emt 0:00:31]} Nc3 {[%emt 0:00:20]} 73. Bg8 {[%emt 0:00:34]} a4 {[%emt 0:00:11]} 74. h4 {[%emt 0:00:10]} gxh4 {[%emt 0:00:03]} 75. Kxh4 {[%emt 0:00:32]} a3 {[%emt 0:00:08]} 76. Kh5 {[%emt 0:00:02]} Kg7 {[%emt 0:00:40]} 77. Bb3 {[%emt 0:00:05]} 1/2-1/2

[Event "Eurasia Open Cup 2019"]
[Site "Ekaterinburg"]
[Date "2019.08.03"]
[Round "4.34"]
[White "Inozemtsev, Sergei"]
[Black "Vinokur, Yuliya"]
[Result "1-0"]
[ECO "A00"]
[WhiteElo "2295"]
[BlackElo "2013"]
[Annotator "NA"]
[PlyCount "77"]
[EventDate "2019.07.31"]
[EventType "swiss"]
[EventCountry "RUS"]
[SourceTitle "playchess.com"]
[Source "ChessBase"]
[SourceQuality "1"]
[TimeControl "5400+30"]

1. e4 {[%emt 0:00:00]} c6 {[%emt 0:00:00]} 2. d3 {[%emt 0:07:29]} d5 {[%emt 0:00:14]} 3. Nd2 {[%emt 0:02:40]} e5 {[%emt 0:04:04]} 4. g3 {[%emt 0:02:47]} Nf6 {[%emt 0:02:20]} 5. Bg2 {[%emt 0:00:19]} Bc5 {[%emt 0:00:48]} 6. Ngf3 {[%emt 0:00:38]} Bg4 {[%emt 0:06:48]} 7. h3 {[%emt 0:01:07]} dxe4 {[%emt 0:01:09]} 8. dxe4 {[%emt 0:00:31]} Be6 {[%emt 0:01:47]} 9. O-O {[%emt 0:00:21]} Nbd7 {[%emt 0:00:56]} 10. Ng5 {[%emt 0:01:31]} O-O {[%emt 0:06:24]} 11. Nxe6 {[%emt 0:01:17]} fxe6 {[%emt 0:00:36]} 12. Qe2 {[%emt 0:05:13]} Qe8 {[%emt 0:07:44]} 13. Nb3 {[%emt 0:02:02]} Qg6 {[%emt 0:03:08]} 14. Be3 {[%emt 0:10:27]} Bxe3 {[%emt 0:10:33]} 15. Qxe3 {[%emt 0:00:06]} b6 {[%emt 0:00:32]} 16. a4 {[%emt 0:01:47]} c5 {[%emt 0:03:07]} 17. Nd2 {[%emt 0:00:52]} a6 {[%emt 0:02:51]} 18. Qb3 {[%emt 0:02:30]} Ne8 {[%emt 0:06:38]} 19. Rad1 {[%emt 0:03:18]} Rb8 {[%emt 0:01:01]} 20. Qd3 {[%emt 0:00:00]} Ndf6 {[%emt 0:04:45]} 21. Qxa6 {[%emt 0:00:31]} Nc7 {[%emt 0:00:35]} 22. Qe2 {[%emt 0:00:55]} b5 {[%emt 0:05:06]} 23. axb5 {[%emt 0:05:53]} Nxb5 {[%emt 0:01:34]} 24. Nc4 {[%emt 0:01:11]} Nd4 {[%emt 0:03:08]} 25. Qd3 {[%emt 0:00:35]} Rbd8 {[%emt 0:04:08]} 26. c3 {[%emt 0:01:05]} Nc6 {[%emt 0:01:44]} 27. Qe3 {[%emt 0:00:00]} Rc8 {[%emt 0:04:52]} 28. Nd6 {[%emt 0:00:53]} Rc7 {[%emt 0:00:17]} 29. Qxc5 {[%emt 0:00:00]} Nd7 {[%emt 0:01:26]} 30. Qe3 {[%emt 0:00:38]} Rb8 {[%emt 0:00:15]} 31. b4 {[%emt 0:01:27]} Na7 {[%emt 0:00:37]} 32. Rd3 {[%emt 0:05:12]} Nb5 {[%emt 0:02:12]} 33. Rfd1 {[%emt 0:00:09]} Nf6 {[%emt 0:00:41]} 34. Nxb5 {[%emt 0:00:49]} Rxb5 {[%emt 0:00:12]} 35. Rd8+ {[%emt 0:00:43]} Kf7 {[%emt 0:01:52]} 36. Bf1 {[%emt 0:00:29]} Rbb7 {[%emt 0:00:00]} 37. Ba6 {[%emt 0:00:40]} Ra7 {[%emt 0:00:20]} 38. b5 {[%emt 0:00:19]} Re7 {[%emt 0:00:35]} 39. Re1 {[%emt 0:00:31]} 1-0

[Event "Eurasia Open Cup 2019"]
[Site "Ekaterinburg"]
[Date "2019.08.03"]
[Round "4.35"]
[White "Fedotov, Alexey"]
[Black "Matsenko, Andrei"]
[Result "1-0"]
[ECO "E39"]
[WhiteElo "2141"]
[BlackElo "2293"]
[Annotator "NA"]
[PlyCount "78"]
[EventDate "2019.07.31"]
[EventType "swiss"]
[EventCountry "RUS"]
[SourceTitle "playchess.com"]
[Source "ChessBase"]
[SourceQuality "1"]
[TimeControl "5400+30"]

1. d4 {[%emt 0:00:00]} Nf6 {[%emt 0:00:00]} 2. c4 {[%emt 0:00:00]} e6 {[%emt 0:00:00]} 3. Nc3 {[%emt 0:00:00]} Bb4 {[%emt 0:00:00]} 4. Nf3 {[%emt 0:00:40]} O-O {[%emt 0:10:28]} 5. Qc2 {[%emt 0:07:45]} c5 {[%emt 0:06:52]} 6. dxc5 {[%emt 0:07:25]} Na6 {[%emt 0:01:17]} 7. Bd2 {[%emt 0:03:14]} Nxc5 {[%emt 0:01:40]} 8. e3 {[%emt 0:08:14]} d6 {[%emt 0:15:33]} 9. a3 {[%emt 0:04:51]} Bxc3 {[%emt 0:01:00]} 10. Bxc3 {[%emt 0:00:11]} Nce4 {[%emt 0:00:24]} 11. Bxf6 {[%emt 0:05:57]} Nxf6 {[%emt 0:00:46]} 12. Be2 {[%emt 0:00:24]} Qe7 {[%emt 0:04:02]} 13. O-O {[%emt 0:01:47]} e5 {[%emt 0:00:49]} 14. Rfd1 {[%emt 0:07:23]} Bg4 {[%emt 0:05:41]} 15. Rac1 {[%emt 0:05:23]} Rac8 {[%emt 0:02:09]} 16. Qb1 {[%emt 0:06:33]} h6 {[%emt 0:05:20]} 17. b3 {[%emt 0:11:16]} Rfd8 {[%emt 0:04:20]} 18. Qb2 {[%emt 0:01:58]} b6 {[%emt 0:02:59]} 19. h3 {[%emt 0:01:05]} Bh5 {[%emt 0:02:16]} 20. Nh4 {[%emt 0:05:32]} Bxe2 {[%emt 0:00:38]} 21. Qxe2 {[%emt 0:00:00]} g6 {[%emt 0:01:07]} 22. e4 {[%emt 0:02:23]} Qb7 {[%emt 0:03:19]} 23. f3 {[%emt 0:05:06]} Nh5 {[%emt 0:03:54]} 24. Kh2 {[%emt 0:02:14]} Qe7 {[%emt 0:04:14]} 25. Qf2 {[%emt 0:00:19]} a6 {[%emt 0:01:21]} 26. a4 {[%emt 0:01:09]} Qg5 {[%emt 0:04:45]} 27. g3 {[%emt 0:02:31]} b5 {[%emt 0:00:19]} 28. axb5 {[%emt 0:00:39]} axb5 {[%emt 0:00:05]} 29. Ng2 {[%emt 0:00:30]} bxc4 {[%emt 0:00:31]} 30. bxc4 {[%emt 0:00:02]} Rb8 {[%emt 0:00:53]} 31. Rc3 {[%emt 0:00:40]} Qe7 {[%emt 0:04:46]} 32. Ne3 {[%emt 0:01:43]} Qa7 {[%emt 0:04:40]} 33. Qe2 {[%emt 0:00:44]} Nf6 {[%emt 0:00:14]} 34. Rcd3 {[%emt 0:01:32]} Qc5 {[%emt 0:00:05]} 35. h4 {[%emt 0:00:12]} Rb6 {[%emt 0:00:42]} 36. Nd5 {[%emt 0:01:00]} Nxd5 {[%emt 0:01:08]} 37. Rxd5 {[%emt 0:01:37]} Qa3 {[%emt 0:00:22]} 38. c5 {[%emt 0:00:04]} Rc6 {[%emt 0:00:29]} 39. Qd3 {[%emt 0:02:57]} Rxc5 {[%emt 0:05:09]} 1-0

[Event "Eurasia Open Cup 2019"]
[Site "Ekaterinburg"]
[Date "2019.08.03"]
[Round "4.36"]
[White "Karpeshov, Oleg"]
[Black "Morgachev, Sergey"]
[Result "1-0"]
[ECO "B31"]
[WhiteElo "2286"]
[BlackElo "1965"]
[Annotator "NA"]
[PlyCount "115"]
[EventDate "2019.07.31"]
[EventType "swiss"]
[EventCountry "RUS"]
[SourceTitle "playchess.com"]
[Source "ChessBase"]
[SourceQuality "1"]
[TimeControl "5400+30"]

1. e4 {[%emt 0:00:00]} c5 {[%emt 0:00:00]} 2. Nf3 {[%emt 0:00:00]} Nc6 {[%emt 0:00:05]} 3. Bb5 {[%emt 0:00:25]} g6 {[%emt 0:00:24]} 4. c3 {[%emt 0:00:10]} Nf6 {[%emt 0:02:31]} 5. Qe2 {[%emt 0:00:15]} Bg7 {[%emt 0:03:32]} 6. O-O {[%emt 0:00:10]} O-O {[%emt 0:01:25]} 7. d4 {[%emt 0:00:15]} cxd4 {[%emt 0:09:37]} 8. cxd4 {[%emt 0:00:46]} d5 {[%emt 0:00:10]} 9. e5 {[%emt 0:00:05]} Ne8 {[%emt 0:01:15]} 10. h3 {[%emt 0:09:28]} Nc7 {[%emt 0:12:08]} 11. Nc3 {[%emt 0:04:28]} Nxb5 {[%emt 0:14:29]} 12. Qxb5 {[%emt 0:05:19]} e6 {[%emt 0:00:41]} 13. Bg5 {[%emt 0:08:12]} Qa5 {[%emt 0:03:48]} 14. Qd3 {[%emt 0:01:39]} h6 {[%emt 0:06:21]} 15. Bh4 {[%emt 0:01:56]} Bd7 {[%emt 0:01:22]} 16. Qe3 {[%emt 0:06:24]} Rfe8 {[%emt 0:10:32]} 17. Bf6 {[%emt 0:04:36]} Ne7 {[%emt 0:01:43]} 18. Qf4 {[%emt 0:03:32]} Qd8 {[%emt 0:14:48]} 19. Rfe1 {[%emt 0:06:17]} Kh7 {[%emt 0:04:45]} 20. g4 {[%emt 0:07:18]} Bxf6 {[%emt 0:02:57]} 21. exf6 {[%emt 0:00:27]} Nc6 {[%emt 0:01:05]} 22. Kg2 {[%emt 0:06:05]} Qb8 {[%emt 0:02:19]} 23. Ne5 {[%emt 0:00:44]} Nxe5 {[%emt 0:00:22]} 24. Rxe5 {[%emt 0:00:14]} g5 {[%emt 0:02:06]} 25. Qe3 {[%emt 0:02:04]} Rg8 {[%emt 0:01:27]} 26. f4 {[%emt 0:00:34]} gxf4 {[%emt 0:00:21]} 27. Qxf4 {[%emt 0:00:09]} Rg6 {[%emt 0:00:55]} 28. Rf1 {[%emt 0:02:09]} Qd8 {[%emt 0:01:04]} 29. Nd1 {[%emt 0:01:48]} Rc8 {[%emt 0:00:01]} 30. Rf2 {[%emt 0:00:07]} Bb5 {[%emt 0:01:28]} 31. Re3 {[%emt 0:00:52]} Ba6 {[%emt 0:00:56]} 32. Nc3 {[%emt 0:00:44]} Rc4 {[%emt 0:00:53]} 33. b3 {[%emt 0:01:26]} Rc8 {[%emt 0:00:30]} 34. Rff3 {[%emt 0:00:40]} Qc7 {[%emt 0:00:30]} 35. Qxc7 {[%emt 0:00:13]} Rxc7 {[%emt 0:00:30]} 36. Kg3 {[%emt 0:00:44]} Rg8 {[%emt 0:00:30]} 37. h4 {[%emt 0:00:03]} b6 {[%emt 0:00:30]} 38. Kf4 {[%emt 0:00:38]} Rg6 {[%emt 0:00:30]} 39. g5 {[%emt 0:00:46]} Rg8 {[%emt 0:00:20]} 40. Rg3 {[%emt 0:00:38]} h5 {[%emt 0:00:13]} 41. Ke5 {[%emt 0:00:31]} Kg6 {[%emt 0:00:25]} 42. b4 {[%emt 0:00:25]} Bc4 {[%emt 0:00:49]} 43. a3 {[%emt 0:00:33]} a5 {[%emt 0:00:43]} 44. Nb1 {[%emt 0:00:30]} Ba6 {[%emt 0:00:08]} 45. Rc3 {[%emt 0:00:31]} Rgc8 {[%emt 0:00:22]} 46. Rxc7 {[%emt 0:00:32]} Rxc7 {[%emt 0:00:18]} 47. Rc3 {[%emt 0:00:33]} Bc4 {[%emt 0:00:21]} 48. Nd2 {[%emt 0:00:04]} b5 {[%emt 0:00:16]} 49. Nf3 {[%emt 0:00:59]} axb4 {[%emt 0:01:35]} 50. axb4 {[%emt 0:00:07]} Ra7 {[%emt 0:00:16]} 51. Kf4 {[%emt 0:00:38]} Kh7 {[%emt 0:00:07]} 52. Ne5 {[%emt 0:00:23]} Kg8 {[%emt 0:00:15]} 53. g6 {[%emt 0:00:39]} fxg6 {[%emt 0:00:35]} 54. Rg3 {[%emt 0:00:27]} Ra1 {[%emt 0:01:17]} 55. Rxg6+ {[%emt 0:00:08]} Kf8 {[%emt 0:00:07]} 56. Kg5 {[%emt 0:01:06]} Rg1+ {[%emt 0:00:10]} 57. Kh6 {[%emt 0:00:09]} Rf1 {[%emt 0:01:13]} 58. Kh7 {[%emt 0:00:50]} 1-0

[Event "Eurasia Open Cup 2019"]
[Site "Ekaterinburg"]
[Date "2019.08.03"]
[Round "4.37"]
[White "Pogorelskikh, Sergey"]
[Black "Yadigarov, Aivaz"]
[Result "1-0"]
[ECO "B06"]
[WhiteElo "2284"]
[BlackElo "1938"]
[Annotator "NA"]
[PlyCount "91"]
[EventDate "2019.07.31"]
[EventType "swiss"]
[EventCountry "RUS"]
[SourceTitle "playchess.com"]
[Source "ChessBase"]
[SourceQuality "1"]
[TimeControl "5400+30"]

1. e4 {[%emt 0:00:00]} c6 {[%emt 0:00:08]} 2. d4 {[%emt 0:00:00]} d6 {[%emt 0:00:00]} 3. Nc3 {[%emt 0:00:14]} g6 {[%emt 0:00:00]} 4. h3 {[%emt 0:01:49]} Bg7 {[%emt 0:00:00]} 5. Nf3 {[%emt 0:00:07]} Nd7 {[%emt 0:01:03]} 6. a4 {[%emt 0:00:26]} Qc7 {[%emt 0:01:02]} 7. Bc4 {[%emt 0:00:32]} Ngf6 {[%emt 0:00:27]} 8. O-O {[%emt 0:02:06]} O-O {[%emt 0:00:01]} 9. Ba2 {[%emt 0:01:38]} e5 {[%emt 0:00:54]} 10. Be3 {[%emt 0:03:36]} Re8 {[%emt 0:06:35]} 11. dxe5 {[%emt 0:01:07]} dxe5 {[%emt 0:00:33]} 12. Nd2 {[%emt 0:02:40]} Nf8 {[%emt 0:03:31]} 13. Nc4 {[%emt 0:00:39]} Rd8 {[%emt 0:00:11]} 14. Qf3 {[%emt 0:02:54]} Ne6 {[%emt 0:04:10]} 15. Rfd1 {[%emt 0:01:14]} Nd4 {[%emt 0:01:07]} 16. Bxd4 {[%emt 0:00:17]} exd4 {[%emt 0:00:13]} 17. Ne2 {[%emt 0:00:26]} b5 {[%emt 0:04:39]} 18. e5 {[%emt 0:05:21]} Ne8 {[%emt 0:17:26]} 19. axb5 {[%emt 0:02:03]} Bb7 {[%emt 0:02:03]} 20. Na5 {[%emt 0:02:14]} Bxe5 {[%emt 0:03:30]} 21. bxc6 {[%emt 0:13:41]} Ba6 {[%emt 0:00:25]} 22. Nc1 {[%emt 0:06:57]} Rab8 {[%emt 0:01:22]} 23. Bc4 {[%emt 0:07:26]} Rb6 {[%emt 0:02:25]} 24. Nd3 {[%emt 0:03:43]} Bh2+ {[%emt 0:01:41]} 25. Kh1 {[%emt 0:02:11]} Bxc4 {[%emt 0:00:40]} 26. Nxc4 {[%emt 0:00:51]} Rxc6 {[%emt 0:02:51]} 27. Rxa7 {[%emt 0:05:14]} Qxa7 {[%emt 0:03:45]} 28. Qxc6 {[%emt 0:00:38]} Qc7 {[%emt 0:03:43]} 29. Qxc7 {[%emt 0:02:50]} Bxc7 {[%emt 0:00:13]} 30. Ra1 {[%emt 0:00:59]} Nd6 {[%emt 0:02:28]} 31. Nxd6 {[%emt 0:02:13]} Rxd6 {[%emt 0:02:11]} 32. b4 {[%emt 0:02:25]} Rc6 {[%emt 0:03:06]} 33. Ra2 {[%emt 0:01:01]} Rb6 {[%emt 0:00:06]} 34. Kg1 {[%emt 0:02:21]} Kf8 {[%emt 0:01:14]} 35. Kf1 {[%emt 0:00:00]} Ke7 {[%emt 0:00:48]} 36. Ra7 {[%emt 0:03:56]} Kd8 {[%emt 0:02:44]} 37. Ke2 {[%emt 0:00:00]} f5 {[%emt 0:00:04]} 38. Nc5 {[%emt 0:00:41]} Kc8 {[%emt 0:00:31]} 39. Ra8+ {[%emt 0:02:07]} Rb8 {[%emt 0:02:20]} 40. Rxb8+ {[%emt 0:01:21]} Bxb8 {[%emt 0:01:44]} 41. Kd3 {[%emt 0:00:14]} Be5 {[%emt 0:00:34]} 42. Kc4 {[%emt 0:00:39]} Kc7 {[%emt 0:00:00]} 43. Ne6+ {[%emt 0:00:43]} Kd6 {[%emt 0:00:51]} 44. Nf8 {[%emt 0:00:07]} Bf6 {[%emt 0:00:34]} 45. Nxh7 {[%emt 0:00:46]} Be7 {[%emt 0:01:57]} 46. f4 {[%emt 0:00:16]} 1-0